fUST/lending_fUST_20250212
["ID","MTS","AMOUNT","RATE_DAILY","PERIOD"]
[352852213,1739371763742,-500.0,0.00011315,2]
[352852214,1739371763775,-500.0,0.00011315,2]
[352852215,1739371763799,-500.0,0.00011344,2]
[352852216,1739371763821,-500.0,0.00011355,2]
[352852217,1739371763843,-500.29730147,0.00011355,2]
[352852218,1739371763865,-500.0,0.00011355,2]
[352852219,1739371763887,-500.0,0.00011355,2]
[352852220,1739371763910,-561.70437769,0.00011369,2]
[352852221,1739371763933,-500.0,0.00011369,2]
[352852222,1739371763956,-510.10829942,0.00011369,2]
[352852223,1739371763983,-500.0,0.00011369,2]
[352852224,1739371764005,-500.0,0.00011369,2]
[352852225,1739371764029,-500.0,0.00011369,2]
[352852226,1739371764052,-603.08767736,0.00011369,2]
[352852227,1739371764076,-500.0,0.00011369,2]
[352852228,1739371764099,-500.0,0.00011369,2]
[352852229,1739371764122,-500.0,0.00011369,2]
[352852230,1739371764144,-500.0,0.00011369,2]
[352852231,1739371764170,-500.0,0.00011369,2]
[352852232,1739371764192,-500.0,0.00011369,2]
[352852233,1739371764218,-500.0,0.00011369,2]
[352852234,1739371764240,-500.0,0.00011369,2]
[352852235,1739371764264,-500.0,0.00011369,2]
[352852236,1739371764287,-500.0,0.00011369,2]
[352852237,1739371764310,-500.0,0.00011369,2]
[352852238,1739371764332,-500.0,0.00011369,2]
[352852239,1739371764355,-500.0,0.00011369,2]
[352852240,1739371764377,-500.0,0.00011369,2]
[352852241,1739371764399,-500.0,0.00011369,2]
[352852242,1739371764422,-500.0,0.00011369,2]
[352852243,1739371764445,-310.9972914,0.00011369,2]
[352852244,1739371764735,-189.0027086,0.00011369,2]
[352852245,1739371764761,-500.0,0.00011369,2]
[352852246,1739371764783,-500.0,0.00011369,2]
[352852247,1739371764806,-500.0,0.00011369,2]
[352852248,1739371764828,-500.0,0.00011369,2]
[352852249,1739371764849,-500.0,0.00011369,2]
[352852250,1739371764872,-500.0,0.00011369,2]
[352852251,1739371764895,-500.0,0.00011369,2]
[352852252,1739371764917,-500.0,0.00011369,2]
[352852253,1739371764940,-500.0,0.00011369,2]
[352852254,1739371764964,-500.0,0.00011369,2]
[352852255,1739371764986,-500.0,0.00011369,2]
[352852256,1739371765008,-500.0,0.00011369,2]
[352852257,1739371765030,-500.0,0.00011369,2]
[352852258,1739371765053,-500.0,0.00011369,2]
[352852259,1739371765074,-500.0,0.00011369,2]
[352852260,1739371765096,-500.0,0.00011369,2]
[352852261,1739371765117,-423.70414032,0.00011369,2]
[352852262,1739371765138,-500.0,0.00011369,2]
[352852263,1739371765161,-500.0,0.00011369,2]
[352852264,1739371765184,-500.0,0.00011369,2]
[352852265,1739371765207,-500.0,0.00011369,2]
[352852266,1739371765231,-388.23739994,0.00011369,2]
[352852267,1739371765254,-500.0,0.00011369,2]
[352852268,1739371765275,-500.0,0.00011369,2]
[352852269,1739371765300,-518.38,0.00011369,2]
[352852270,1739371765323,-500.0,0.00011369,2]
[352852271,1739371765346,-500.0,0.00011369,2]
[352852272,1739371765369,-500.0,0.00011369,2]
[352852273,1739371765392,-500.0,0.00011369,2]
[352852274,1739371765415,-500.0,0.00011369,2]
[352852275,1739371765438,-500.0,0.00011369,2]
[352852276,1739371765462,-1119.08519866,0.00011369,2]
[352852277,1739371765551,-1082.54480134,0.00011369,2]
[352852278,1739371765588,-500.0,0.00011369,2]
[352852279,1739371765625,-500.0,0.00011369,2]
[352852280,1739371765660,-500.0,0.00011369,2]
[352852281,1739371765698,-500.0,0.00011369,2]
[352852282,1739371765881,-500.0,0.00011369,2]
[352852283,1739371765926,-500.0,0.00011369,2]
[352852284,1739371765966,-500.0,0.00011369,2]
[352852285,1739371766004,-271.1493409,0.00011369,2]
[352852286,1739371766043,-500.0,0.00011369,2]
[352852287,1739371766081,-500.0,0.00011369,2]
[352852288,1739371766116,-460.0,0.00011369,2]
[352852289,1739371766153,-500.0,0.00011369,2]
[352852290,1739371766189,-500.0,0.00011369,2]
[352852291,1739371766227,-500.0,0.00011369,2]
[352852292,1739371766253,-500.0,0.00011369,2]
[352852293,1739371766278,-500.0,0.00011369,2]
[352852294,1739371766303,-500.0,0.00011369,2]
[352852295,1739371766328,-500.0,0.00011369,2]
[352852296,1739371766355,-679.94,0.00011369,2]
[352852297,1739371766379,-500.0,0.00011369,2]
[352852298,1739371766406,-500.0,0.00011369,2]
[352852299,1739371766432,-500.0,0.00011369,2]
[352852300,1739371766459,-500.0,0.00011369,2]
[352852301,1739371766486,-500.0,0.00011369,2]
[352852302,1739371766511,-500.0,0.00011369,2]
[352852303,1739371766536,-500.0,0.00011369,2]
[352852304,1739371766565,-500.0,0.00011369,2]
[352852305,1739371766604,-500.0,0.00011369,2]
[352852306,1739371766642,-500.0,0.00011369,2]
[352852307,1739371766682,-500.0,0.00011369,2]
[352852308,1739371766725,-500.0,0.00011369,2]
[352852309,1739371766769,-500.0,0.00011369,2]
[352852310,1739371766810,-500.0,0.00011369,2]
[352852311,1739371766849,-503.27,0.00011369,2]
[352852312,1739371766889,-500.0,0.00011369,2]
[352852313,1739371766933,-500.0,0.00011369,2]
[352852314,1739371766973,-500.0,0.00011369,2]
[352852315,1739371767010,-500.0,0.00011369,2]
[352852316,1739371767046,-500.0,0.00011369,2]
[352852317,1739371767083,-500.0,0.00011369,2]
[352852318,1739371767118,-500.0,0.00011369,2]
[352852319,1739371767154,-1728.81,0.00011369,2]
[352852320,1739371767191,-1058.09,0.00011369,2]
[352852321,1739371767227,-500.0,0.00011369,2]
[352852322,1739371767263,-500.0,0.00011369,2]
[352852323,1739371767300,-500.0,0.00011369,2]
[352852324,1739371767338,-500.0,0.00011369,2]
[352852325,1739371767374,-500.0,0.00011369,2]
[352852326,1739371767408,-500.0,0.00011369,2]
[352852327,1739371767447,-500.0,0.00011369,2]
[352852328,1739371767484,-500.0,0.00011369,2]
[352852329,1739371767522,-5046.59,0.00011369,2]
[352852330,1739371767563,-500.0,0.00011369,2]
[352852331,1739371767605,-500.0,0.00011369,2]
[352852332,1739371767645,-500.0,0.00011369,2]
[352852333,1739371767682,-500.0,0.00011369,2]
[352852334,1739371767723,-500.0,0.00011393,2]
[352852335,1739371767761,-500.0,0.00011393,2]
[352852336,1739371767798,-394.98875047,0.00011506,2]
[352852337,1739371767836,-222.88771993,0.00011506,2]
[352852338,1739371767877,-500.0,0.00011506,2]
[352852339,1739371767918,-179.10073265,0.00011506,2]
[352852340,1739371767958,-500.0,0.00011506,2]
[352852341,1739371767999,-500.0,0.00011506,2]
[352852342,1739371768035,-500.0,0.00011506,2]
[352852343,1739371768072,-500.0,0.00011506,2]
[352852344,1739371768108,-500.0,0.00011506,2]
[352852345,1739371768142,-632.6,0.00011506,2]
[352852346,1739371768177,-197.69444533,0.00011506,2]
[352852347,1739371768212,-500.0,0.00011506,2]
[352852348,1739371768252,-639.42,0.00011506,2]
[352852349,1739371768290,-500.0,0.00011506,2]
[352852350,1739371768326,-500.0,0.00011506,2]
[352852351,1739371768366,-500.0,0.00011506,2]
[352852352,1739371768402,-500.0,0.00011506,2]
[352852353,1739371768438,-500.0,0.00011506,2]
[352852354,1739371768475,-500.0,0.00011506,2]
[352852355,1739371768509,-500.0,0.00011506,2]
[352852356,1739371768549,-500.0,0.00011506,2]
[352852357,1739371768585,-500.0,0.00011506,2]
[352852358,1739371768619,-500.0,0.00011506,2]
[352852359,1739371768657,-518.38,0.00011506,2]
[352852360,1739371768695,-500.0,0.00011506,2]
[352852361,1739371768733,-500.0,0.00011506,2]
[352852362,1739371768770,-500.0,0.00011506,2]
[352852363,1739371768807,-500.0,0.00011506,2]
[352852364,1739371768845,-2201.63,0.00011506,2]
[352852365,1739371768880,-500.0,0.00011506,2]
[352852366,1739371768921,-256.76240735,0.00011506,2]
[352852367,1739371768958,-500.0,0.00011506,2]
[352852368,1739371768996,-500.0,0.00011506,2]
[352852369,1739371769032,-500.0,0.00011506,2]
[352852370,1739371769069,-500.0,0.00011506,2]
[352852371,1739371769105,-500.0,0.00011506,2]
[352852372,1739371769142,-500.0,0.00011506,2]
[352852373,1739371769177,-526.98426276,0.00011506,2]
[352852374,1739371769213,-500.0,0.00011506,2]
[352852375,1739371769251,-500.0,0.00011506,2]
[352852376,1739371769288,-679.94,0.00011506,2]
[352852377,1739371769328,-500.0,0.00011506,2]
[352852378,1739371769367,-500.0,0.00011506,2]
[352852379,1739371769404,-500.0,0.00011506,2]
[352852380,1739371769443,-331.73907005,0.00011506,2]
[352852381,1739371769480,-503.27,0.00011506,2]
[352852382,1739371769515,-500.0,0.00011506,2]
[352852383,1739371769554,-500.0,0.00011506,2]
[352852384,1739371769590,-500.0,0.00011506,2]
[352852385,1739371769631,-500.0,0.00011506,2]
[352852386,1739371769671,-1728.81,0.00011506,2]
[352852387,1739371769712,-1058.09,0.00011506,2]
[352852388,1739371769754,-500.0,0.00011506,2]
[352852389,1739371769794,-500.0,0.00011506,2]
[352852390,1739371769834,-500.0,0.00011506,2]
[352852391,1739371769875,-500.0,0.00011506,2]
[352852392,1739371770023,-500.0,0.00011506,2]
[352852393,1739371770066,-5046.59,0.00011506,2]
[352852394,1739371770105,-500.0,0.00011506,2]
[352852395,1739371770142,-500.0,0.00011506,2]
[352852396,1739371770180,-500.0,0.00011506,2]
[352852397,1739371770217,-273.74173848,0.00011595,2]
[352852398,1739371770256,-500.0,0.00011643,2]
[352852399,1739371770296,-500.0,0.00011643,2]
[352852400,1739371770335,-588.39,0.00011643,2]
[352852401,1739371770375,-500.0,0.00011643,2]
[352852402,1739371770415,-500.0,0.00011643,2]
[352852403,1739371770454,-500.0,0.00011643,2]
[352852404,1739371770494,-500.0,0.00011643,2]
[352852405,1739371770533,-500.0,0.00011643,2]
[352852406,1739371770573,-500.0,0.00011643,2]
[352852407,1739371770615,-500.0,0.00011643,2]
[352852408,1739371770654,-500.0,0.00011643,2]
[352852409,1739371770694,-600.51,0.00011643,2]
[352852410,1739371770731,-500.0,0.00011643,2]
[352852411,1739371770769,-500.0,0.00011643,2]
[352852412,1739371770807,-500.0,0.00011643,2]
[352852413,1739371770845,-500.0,0.00011643,2]
[352852414,1739371770884,-500.0,0.00011643,2]
[352852415,1739371770923,-518.38,0.00011643,2]
[352852416,1739371770963,-500.0,0.00011643,2]
[352852417,1739371771002,-152.52,0.00011643,2]
[352852418,1739371771041,-500.0,0.00011643,2]
[352852419,1739371771076,-500.0,0.00011643,2]
[352852420,1739371771115,-2201.63,0.00011643,2]
[352852421,1739371771149,-500.0,0.00011643,2]
[352852422,1739371771185,-500.0,0.00011643,2]
[352852423,1739371771226,-330.21,0.00011643,2]
[352852424,1739371771267,-500.0,0.00011643,2]
[352852425,1739371771304,-500.0,0.00011643,2]
[352852426,1739371771340,-500.0,0.00011643,2]
[352852427,1739371771379,-500.0,0.00011643,2]
[352852428,1739371771418,-500.0,0.00011643,2]
[352852429,1739371771456,-679.94,0.00011643,2]
[352852430,1739371771498,-500.0,0.00011643,2]
[352852431,1739371771532,-500.0,0.00011643,2]
[352852432,1739371771572,-503.27,0.00011643,2]
[352852433,1739371771606,-500.0,0.00011643,2]
[352852434,1739371771640,-500.0,0.00011643,2]
[352852435,1739371771676,-500.0,0.00011643,2]
[352852436,1739371771711,-1058.09,0.00011643,2]
[352852437,1739371771750,-1728.81,0.00011643,2]
[352852438,1739371771786,-500.0,0.00011643,2]
[352852439,1739371771821,-500.0,0.00011643,2]
[352852440,1739371771857,-500.0,0.00011643,2]
[352852441,1739371771896,-500.0,0.00011643,2]
[352852442,1739371771932,-500.0,0.00011643,2]
[352852443,1739371771969,-5046.59,0.00011643,2]
[352852444,1739371772006,-422.36044086,0.00011643,2]
[352852445,1739371772041,-500.0,0.00011643,2]
[352852446,1739371772077,-500.0,0.00011643,2]
[352852447,1739371772112,-500.0,0.0001178,2]
[352852448,1739371772145,-500.0,0.0001178,2]
[352852449,1739371772180,-500.0,0.0001178,2]
[352852450,1739371772214,-500.0,0.0001178,2]
[352852451,1739371772250,-500.0,0.0001178,2]
[352852452,1739371772285,-500.0,0.0001178,2]
[352852453,1739371772320,-347.97,0.0001178,2]
[352852454,1739371772356,-500.0,0.0001178,2]
[352852455,1739371772394,-500.0,0.0001178,2]
[352852456,1739371772429,-500.0,0.0001178,2]
[352852457,1739371772465,-500.0,0.0001178,2]
[352852458,1739371772502,-500.0,0.0001178,2]
[352852459,1739371772544,-500.0,0.0001178,2]
[352852460,1739371772581,-500.0,0.0001178,2]
[352852461,1739371772620,-518.38,0.0001178,2]
[352852462,1739371772656,-500.0,0.0001178,2]
[352852463,1739371772692,-500.0,0.0001178,2]
[352852464,1739371772732,-2201.63,0.0001178,2]
[352852465,1739371772768,-558.08,0.0001178,2]
[352852466,1739371772806,-500.0,0.0001178,2]
[352852467,1739371772842,-500.0,0.0001178,2]
[352852468,1739371772879,-500.0,0.0001178,2]
[352852469,1739371772917,-500.0,0.0001178,2]
[352852470,1739371772958,-500.0,0.0001178,2]
[352852471,1739371772999,-500.0,0.0001178,2]
[352852472,1739371773043,-679.94,0.0001178,2]
[352852473,1739371773083,-500.0,0.0001178,2]
[352852474,1739371773122,-389.67,0.0001178,2]
[352852475,1739371773158,-503.27,0.0001178,2]
[352852476,1739371773194,-584.4,0.0001178,2]
[352852477,1739371773230,-500.0,0.0001178,2]
[352852478,1739371773266,-500.0,0.0001178,2]
[352852479,1739371773303,-1058.09,0.0001178,2]
[352852480,1739371773340,-1728.81,0.0001178,2]
[352852481,1739371773376,-500.0,0.0001178,2]
[352852482,1739371773414,-500.0,0.0001178,2]
[352852483,1739371773451,-500.0,0.0001178,2]
[352852484,1739371773488,-500.0,0.0001178,2]
[352852485,1739371773526,-500.0,0.0001178,2]
[352852486,1739371773566,-5046.59,0.0001178,2]
[352852487,1739371773604,-500.0,0.0001178,2]
[352852488,1739371773642,-500.0,0.0001178,2]
[352852489,1739371773681,-224.89866675,0.00011843,2]
[352852490,1739371773721,-500.0,0.00011863,2]
[352852491,1739371773761,-1000.0,0.00011863,2]
[352852492,1739371773800,-1000.0,0.00011892,2]
[352852493,1739371773840,-1000.81469492,0.00011903,2]
[352852494,1739371773885,-1000.0,0.00011903,2]
[352852495,1739371773929,-500.0,0.00011917,2]
[352852496,1739371773969,-500.0,0.00011917,2]
[352852497,1739371774014,-500.0,0.00011917,2]
[352852498,1739371774056,-500.0,0.00011917,2]
[352852499,1739371774199,-500.0,0.00011917,2]
[352852500,1739371774243,-500.0,0.00011917,2]
[352852501,1739371774282,-495.24567255,0.00011917,2]
[352852502,1739371774324,-500.0,0.00011917,2]
[352852503,1739371774364,-500.0,0.00011917,2]
[352852504,1739371774403,-500.0,0.00011917,2]
[352852505,1739371774443,-352.93,0.00011917,2]
[352852506,1739371774481,-500.0,0.00011917,2]
[352852507,1739371774521,-518.38,0.00011917,2]
[352852508,1739371774563,-500.0,0.00011917,2]
[352852509,1739371774602,-529.28,0.00011917,2]
[352852510,1739371774645,-2201.63,0.00011917,2]
[352852511,1739371774683,-500.0,0.00011917,2]
[352852512,1739371774721,-500.0,0.00011917,2]
[352852513,1739371774761,-500.0,0.00011917,2]
[352852514,1739371774798,-500.0,0.00011917,2]
[352852515,1739371774838,-500.0,0.00011917,2]
[352852516,1739371774875,-500.0,0.00011917,2]
[352852517,1739371774915,-679.94,0.00011917,2]
[352852518,1739371774955,-500.0,0.00011917,2]
[352852519,1739371774994,-503.27,0.00011917,2]
[352852520,1739371775032,-500.0,0.00011917,2]
[352852521,1739371775068,-500.0,0.00011917,2]
[352852522,1739371775109,-1058.09,0.00011917,2]
[352852523,1739371775147,-1728.81,0.00011917,2]
[352852524,1739371775185,-500.0,0.00011917,2]
[352852525,1739371775227,-500.0,0.00011917,2]
[352852526,1739371775264,-500.0,0.00011917,2]
[352852527,1739371775303,-500.0,0.00011917,2]
[352852528,1739371775342,-500.0,0.00011917,2]
[352852529,1739371775381,-5046.59,0.00011917,2]
[352852530,1739371775418,-500.0,0.00011917,2]
[352852531,1739371775457,-500.0,0.00011917,2]
[352852532,1739371775496,-500.0,0.00012054,2]
[352852533,1739371775536,-500.0,0.00012054,2]
[352852534,1739371775581,-500.0,0.00012054,2]
[352852535,1739371775620,-500.0,0.00012054,2]
[352852536,1739371775661,-500.0,0.00012054,2]
[352852537,1739371775701,-301.71622395,0.00012054,2]
[352852538,1739371775741,-200.35,0.00012054,2]
[352852539,1739371775783,-518.38,0.00012054,2]
[352852540,1739371775823,-466.8,0.00012054,2]
[352852541,1739371775868,-2201.63,0.00012054,2]
[352852542,1739371775908,-500.0,0.00012054,2]
[352852543,1739371775950,-500.0,0.00012054,2]
[352852544,1739371775992,-679.94,0.00012054,2]
[352852545,1739371776035,-503.27,0.00012054,2]
[352852546,1739371776078,-500.0,0.00012054,2]
[352852547,1739371776121,-500.0,0.00012054,2]
[352852548,1739371776163,-1728.81,0.00012054,2]
[352852549,1739371776207,-1058.09,0.00012054,2]
[352852550,1739371776249,-327.12,0.00012054,2]
[352852551,1739371776289,-500.0,0.00012054,2]
[352852552,1739371776328,-639.2,0.00012054,2]
[352852553,1739371776369,-500.0,0.00012054,2]
[352852554,1739371776408,-500.0,0.00012054,2]
[352852555,1739371776450,-5046.59,0.00012054,2]
[352852556,1739371776490,-500.0,0.00012054,2]
[352852557,1739371776529,-500.0,0.00012054,2]
[352852558,1739371776567,-587.0,0.00012164,2]
[352852559,1739371776602,-500.0,0.00012191,2]
[352852560,1739371776636,-500.0,0.00012191,2]
[352852561,1739371776672,-500.0,0.00012191,2]
[352852562,1739371776707,-518.38,0.00012191,2]
[352852563,1739371776742,-2201.63,0.00012191,2]
[352852564,1739371776776,-500.0,0.00012191,2]
[352852565,1739371776809,-500.0,0.00012191,2]
[352852566,1739371776846,-679.94,0.00012191,2]
[352852567,1739371776883,-503.27,0.00012191,2]
[352852568,1739371776920,-342.81,0.00012191,2]
[352852569,1739371776960,-500.0,0.00012191,2]
[352852570,1739371777000,-1728.81,0.00012191,2]
[352852571,1739371777039,-1058.09,0.00012191,2]
[352852572,1739371777078,-500.0,0.00012191,2]
[352852573,1739371777113,-5046.59,0.00012191,2]
[352852574,1739371777150,-500.0,0.00012191,2]
[352852575,1739371777187,-500.0,0.00012191,2]
[352852576,1739371777222,-392.89,0.00012328,2]
[352852577,1739371777261,-500.0,0.00012328,2]
[352852578,1739371777295,-500.0,0.00012328,2]
[352852579,1739371777333,-518.38,0.00012328,2]
[352852580,1739371777370,-2201.63,0.00012328,2]
[352852581,1739371777404,-319.84,0.00012328,2]
[352852582,1739371777440,-500.0,0.00012328,2]
[352852583,1739371777477,-679.94,0.00012328,2]
[352852584,1739371777513,-503.27,0.00012328,2]
[352852585,1739371777551,-500.0,0.00012328,2]
[352852586,1739371777587,-1728.81,0.00012328,2]
[352852587,1739371777626,-1058.09,0.00012328,2]
[352852588,1739371777663,-500.0,0.00012328,2]
[352852589,1739371777701,-5046.59,0.00012328,2]
[352852590,1739371777738,-500.0,0.00012328,2]
[352852591,1739371777774,-500.0,0.00012328,2]
[352852592,1739371777809,-500.0,0.00012465,2]
[352852593,1739371777847,-399.68,0.00012465,2]
[352852594,1739371777888,-518.38,0.00012465,2]
[352852595,1739371777927,-2201.63,0.00012465,2]
[352852596,1739371777964,-555.28,0.00012465,2]
[352852597,1739371778004,-679.94,0.00012465,2]
[352852598,1739371778043,-503.27,0.00012465,2]
[352852599,1739371778082,-500.0,0.00012465,2]
[352852600,1739371778123,-1728.81,0.00012465,2]
[352852601,1739371778162,-1058.09,0.00012465,2]
[352852602,1739371778299,-500.0,0.00012465,2]
[352852603,1739371778338,-5046.59,0.00012465,2]
[352852604,1739371778375,-500.0,0.00012465,2]
[352852605,1739371778414,-500.0,0.00012465,2]
[352852606,1739371778451,-300.24101446,0.00012602,2]
[352852607,1739371778492,-518.38,0.00012602,2]
[352852608,1739371778535,-2201.63,0.00012602,2]
[352852609,1739371778578,-679.94,0.00012602,2]
[352852610,1739371778621,-503.27,0.00012602,2]
[352852611,1739371778660,-500.0,0.00012602,2]
[352852612,1739371778702,-1728.81,0.00012602,2]
[352852613,1739371778746,-1058.09,0.00012602,2]
[352852614,1739371778786,-500.0,0.00012602,2]
[352852615,1739371778827,-5046.59,0.00012602,2]
[352852616,1739371778868,-500.0,0.00012602,2]
[352852617,1739371778909,-500.0,0.00012602,2]
[352852618,1739371778951,-518.38,0.00012739,2]
[352852619,1739371778992,-2201.63,0.00012739,2]
[352852620,1739371779035,-679.94,0.00012739,2]
[352852621,1739371779074,-503.27,0.00012739,2]
[352852622,1739371779112,-500.0,0.00012739,2]
[352852623,1739371779151,-1728.81,0.00012739,2]
[352852624,1739371779187,-1058.09,0.00012739,2]
[352852625,1739371779225,-500.0,0.00012739,2]
[352852626,1739371779265,-5046.59,0.00012739,2]
[352852627,1739371779302,-500.0,0.00012739,2]
[352852628,1739371779341,-161.12,0.00012739,2]
[352852629,1739371779376,-609.20373609,0.00012871,2]
[352852630,1739371779413,-518.38,0.00012876,2]
[352852631,1739371779452,-2201.63,0.00012876,2]
[352852632,1739371779489,-679.94,0.00012876,2]
[352852633,1739371779526,-503.27,0.00012876,2]
[352852634,1739371779563,-500.0,0.00012876,2]
[352852635,1739371779602,-1728.81,0.00012876,2]
[352852636,1739371779644,-1058.09,0.00012876,2]
[352852637,1739371779683,-500.0,0.00012876,2]
[352852638,1739371779721,-5046.59,0.00012876,2]
[352852639,1739371779763,-500.0,0.00012876,2]
[352852640,1739371779801,-1500.0,0.00012893,2]
[352852641,1739371779838,-178.31442193,0.000129,2]
[352852642,1739371780187,-518.38,0.00013013,2]
[352852643,1739371780211,-2201.63,0.00013013,2]
[352852644,1739371780236,-679.94,0.00013013,2]
[352852645,1739371780259,-503.27,0.00013013,2]
[352852646,1739371780282,-193.6,0.00013013,2]
[352852647,1739371780306,-1728.81,0.00013013,2]
[352852648,1739371780330,-1058.09,0.00013013,2]
[352852649,1739371780357,-500.0,0.00013013,2]
[352852650,1739371780381,-5046.59,0.00013013,2]
[352852651,1739371780405,-636.0,0.00013013,2]
[352852652,1739371780452,500.0,0.00010958,2]
[352852653,1739371780483,270.99536582,0.00011095,2]
[352852657,1739371803167,811.23574677,0.00011944,2]
[352852658,1739371803221,500.0,0.00011396,2]
[352852659,1739371803334,278.54427922,0.00011396,2]
[352852660,1739371824235,733.87,0.00010958,2]
[352852661,1739371824493,733.87,0.00011095,2]
[352852662,1739371824893,733.87,0.00011232,2]
[352852663,1739371825142,733.87,0.00011369,2]
[352852664,1739371825518,733.87,0.00011506,2]
[352852665,1739371825811,733.87,0.00011643,2]
[352852666,1739371826061,733.87,0.0001178,2]
[352852667,1739371826508,733.87,0.00011917,2]
[352852668,1739371826814,733.87,0.00012054,2]
[352852669,1739371827083,733.87,0.00012191,2]
[352852670,1739371827352,733.87,0.00012328,2]
[352852671,1739371827639,733.87,0.00012465,2]
[352852672,1739371827909,733.87,0.00012602,2]
[352852673,1739371828328,733.87,0.00012739,2]
[352852674,1739371828577,733.87,0.00012876,2]
[352852675,1739371828925,733.87,0.00013013,2]
[352852738,1739371832582,-500.0,0.0001308,2]
[352852739,1739371832592,-300.0,0.00013149,2]
[352852740,1739371832603,-679.94,0.0001315,2]
[352852741,1739371832613,-503.27,0.0001315,2]
[352852742,1739371832622,-317.42784516,0.0001315,2]
[352852743,1739371832634,-1411.38215484,0.0001315,2]
[352852744,1739371832645,-1058.09,0.0001315,2]
[352852745,1739371832657,-177.04,0.0001315,2]
[352852746,1739371832667,-5046.59,0.0001315,2]
[352852747,1739371832678,-733.87,0.0001315,2]
[352852748,1739371832687,-679.94,0.00013287,2]
[352852749,1739371832698,-503.27,0.00013287,2]
[352852750,1739371832707,-1728.81,0.00013287,2]
[352852751,1739371832717,-1058.09,0.00013287,2]
[352852752,1739371832727,-5046.59,0.00013287,2]
[352852753,1739371832736,-733.87,0.00013287,2]
[352852754,1739371832746,-679.94,0.00013424,2]
[352852755,1739371832756,-503.27,0.00013424,2]
[352852756,1739371832767,-1728.81,0.00013424,2]
[352852757,1739371832779,-1058.09,0.00013424,2]
[352852758,1739371832789,-5046.59,0.00013424,2]
[352852759,1739371832799,-733.87,0.00013424,2]
[352852760,1739371832808,-679.94,0.00013561,2]
[352852761,1739371832817,-503.27,0.00013561,2]
[352852762,1739371832826,-1728.81,0.00013561,2]
[352852763,1739371832835,-1058.09,0.00013561,2]
[352852764,1739371832845,-5046.59,0.00013561,2]
[352852765,1739371832856,-733.87,0.00013561,2]
[352852766,1739371832866,-361.993,0.00013698,2]
[352852767,1739371832875,-679.94,0.00013698,2]
[352852768,1739371832885,-503.27,0.00013698,2]
[352852769,1739371832895,-1728.81,0.00013698,2]
[352852770,1739371832905,-1058.09,0.00013698,2]
[352852771,1739371832915,-5046.59,0.00013698,2]
[352852772,1739371832925,-733.87,0.00013698,2]
[352852773,1739371832935,-151.0,0.000137,2]
[352852774,1739371832946,-2647.89591762,0.000138,2]
[352852775,1739371832955,-679.94,0.00013835,2]
[352852776,1739371832964,-503.27,0.00013835,2]
[352852777,1739371832975,-1728.81,0.00013835,2]